bitfinex-derivatives/quotes_BNBF0:USTF0_20250810
["timestamp","ask_amount","ask_price","bid_price","bid_amount"]
[1754834426481,1.1028826,795.6,795.19,0.21841667]
[1754834427378,1.1028826,795.62,795.19,0.21841667]
[1754834427578,1.1028826,795.61,795.19,0.21841667]
[1754834428078,1.1028826,795.57,795.19,0.21841667]
[1754834428278,1.1028826,795.52,795.19,0.21841667]
[1754834428481,1.1028826,795.51,795.19,0.21841667]
[1754834428679,1.1028826,795.57,795.19,0.21841667]
[1754834428878,1.1028826,795.68,795.19,0.21841667]
[1754834429377,1.1028826,795.62,795.19,0.21841667]
[1754834430382,1.1028826,795.61,795.19,0.21841667]
[1754834430881,1.1028826,795.62,795.19,0.21841667]
[1754834431082,1.1028826,795.72,795.19,0.21841667]
[1754834431286,1.1028826,795.68,795.19,0.21841667]
[1754834432185,1.1028826,795.55,795.19,0.21841667]
[1754834432381,2.7957214,796.53,795.19,0.21841667]
[1754834432382,1.1028826,795.52,795.19,0.21841667]
[1754834433382,1.1028826,795.49,795.19,0.21841667]
[1754834433581,1.1028826,795.45,795.19,0.21841667]
[1754834433784,1.1028826,795.37,795.19,0.21841667]
[1754834433988,1.1028826,795.38,795.19,0.21841667]
[1754834434189,1.1028826,795.36,795.19,0.21841667]
[1754834434391,1.1028826,795.42,795.19,0.21841667]
[1754834434685,1.1028826,795.34,795.19,0.21841667]
[1754834434891,1.1028826,795.45,795.19,0.21841667]
[1754834435089,1.1028826,795.29,795.19,0.21841667]
[1754834435388,1.1028826,795.38,795.19,0.21841667]
[1754834435590,1.1028826,795.36,795.19,0.21841667]
[1754834435888,1.1028826,795.35,795.19,0.21841667]
[1754834436088,0.21854492,796.7,795.19,0.21841667]
[1754834436089,1.1028826,795.37,795.19,0.21841667]
[1754834436388,1.1028826,795.36,795.19,0.21841667]
[1754834436589,1.1028826,795.3,795.19,0.21841667]
[1754834437289,1.1028826,795.22,795.19,0.21841667]
[1754834437489,1.1028826,795.23,795.19,0.21841667]
[1754834437686,1.1028826,795.22,795.19,0.21841667]
[1754834438496,1.1028826,795.23,795.19,0.21841667]
[1754834438999,1.1028826,795.24,795.19,0.21841667]
[1754834439297,1.1028826,795.22,795.19,0.21841667]
[1754834439594,1.1028826,795.23,795.19,0.21841667]
[1754834440696,1.654324,795.3,795.19,0.21841667]
[1754834441495,1.654324,795.31,795.19,0.21841667]
[1754834443596,1.10445,795.2,795.19,0.21841667]
[1754834443797,1.10445,795.3,795.19,0.21841667]
[1754834444297,1.10445,795.33,795.19,0.21841667]
[1754834444801,1.10445,795.44,795.19,0.21841667]
[1754834445003,3.91401,796.61,795.19,0.21841667]
[1754834445004,1.10445,795.28,795.19,0.21841667]
[1754834445204,1.10445,795.27,795.19,0.21841667]
[1754834445404,1.10445,795.25,795.19,0.21841667]
[1754834445605,1.10445,795.24,795.19,0.21841667]
[1754834446202,1.10445,795.25,795.19,0.21841667]
[1754834446405,1.10445,795.23,795.19,0.21841667]
[1754834446706,1.10445,795.25,795.19,0.21841667]
[1754834447907,1.10445,795.26,795.19,0.21841667]
[1754834448108,1.10445,795.27,795.19,0.21841667]
[1754834448608,1.10445,795.29,795.19,0.21841667]
[1754834448904,1.10445,795.39,795.19,0.21841667]
[1754834449107,1.10445,795.37,795.19,0.21841667]
[1754834449509,1.10445,795.36,795.19,0.21841667]
[1754834449706,1.10445,795.34,795.19,0.21841667]
[1754834450404,1.10445,795.35,795.19,0.21841667]
[1754834450605,1.10445,795.34,795.19,0.21841667]
[1754834450805,1.10445,795.38,795.19,0.21841667]
[1754834451204,1.10445,795.37,795.19,0.21841667]
[1754834452704,1.10445,795.38,795.19,0.21841667]
[1754834452908,1.10445,795.37,795.19,0.21841667]
[1754834453306,1.10445,795.36,795.19,0.21841667]
[1754834453806,1.10445,795.3,795.19,0.21841667]
[1754834454106,1.10445,795.33,795.19,0.21841667]
[1754834454409,1.10445,795.37,795.19,0.21841667]
[1754834454610,1.10445,795.33,795.19,0.21841667]
[1754834455511,1.10445,795.31,795.19,0.21841667]
[1754834455711,1.10445,795.32,795.19,0.21841667]
[1754834455912,1.10445,795.36,795.19,0.21841667]
[1754834456112,1.10445,795.42,795.19,0.21841667]
[1754834457911,1.10445,795.44,795.19,0.21841667]
[1754834458113,1.10445,795.45,795.19,0.21841667]
[1754834458814,1.10445,795.44,795.19,0.21841667]
[1754834459010,1.10445,795.45,795.19,0.21841667]
[1754834459213,1.10445,795.46,795.19,0.21841667]
[1754834459412,1.10445,795.45,795.19,0.21841667]
[1754834460624,1.10445,795.43,795.19,0.21841667]
[1754834460822,1.10445,795.31,795.19,0.21841667]
[1754834461123,1.10445,795.22,795.19,0.21841667]
[1754834461823,1.654324,795.34,795.19,0.21841667]
[1754834462525,1.102884,795.2,795.19,0.21841667]
[1754834464226,1.654324,795.42,795.19,0.21841667]
[1754834464426,1.102518,795.2,795.19,0.21841667]
[1754834464624,1.654324,795.41,795.19,0.21841667]
[1754834465421,1.1024827,795.25,795.19,0.21841667]
[1754834465922,1.1024827,795.24,795.19,0.21841667]
[1754834466220,1.1024827,795.21,795.19,0.21841667]
[1754834466419,1.654324,795.42,795.19,0.21841667]
[1754834467326,1.1027489,795.21,795.19,0.21841667]
[1754834467526,1.654324,795.41,795.19,0.21841667]
[1754834468026,1.654324,795.33,795.19,0.21841667]
[1754834468422,1.654324,795.34,795.19,0.21841667]
[1754834469221,1.654324,795.36,795.19,0.21841667]
[1754834470725,1.654324,795.22,795.19,0.21841667]
[1754834470927,1.654324,795.32,795.19,0.21841667]
[1754834473127,1.1025724,795.22,795.19,0.21841667]
[1754834473422,1.1025724,795.33,795.19,0.21841667]
[1754834473625,1.1025724,795.29,795.19,0.21841667]
[1754834473824,1.1025724,795.25,795.19,0.21841667]
[1754834474024,1.654324,795.38,795.19,0.21841667]
[1754834474724,1.1027618,795.21,795.19,0.21841667]
[1754834475428,1.654324,795.35,795.19,0.21841667]
[1754834476228,1.654324,795.32,795.19,0.21841667]
[1754834477524,1.654324,795.31,795.19,0.21841667]
[1754834477828,1.654324,795.34,795.19,0.21841667]
[1754834478026,1.654324,795.35,795.19,0.21841667]
[1754834479529,1.654324,795.36,795.19,0.21841667]
[1754834479726,2.7957214,796.32,795.19,0.21841667]
[1754834479929,0.70906964,796.31,795.19,0.21841667]
[1754834480131,2.7957214,795.89,795.19,0.21841667]
[1754834480327,0.70906964,795.88,795.19,0.21841667]
[1754834480531,0.70906964,795.87,795.19,0.21841667]
[1754834480732,0.70906964,795.86,795.19,0.21841667]
[1754834480932,0.70906964,795.85,795.19,0.21841667]
[1754834481228,0.70906964,795.84,795.19,0.21841667]
[1754834481529,0.70906964,795.83,795.19,0.21841667]
[1754834481829,0.70909467,795.82,793.78,0.5]
[1754834482028,0.82739494,794.66,793.78,0.5]
[1754834482631,0.82739494,794.65,793.57,0.5]
[1754834482831,0.82739494,794.62,793.57,0.5]
[1754834483032,0.82739494,794.64,793.57,0.5]
[1754834483431,1.1031932,794.85,793.57,0.5]
[1754834483631,1.1031932,794.84,793.57,0.5]
[1754834483834,1.1031932,794.85,793.57,0.5]
[1754834484234,1.1031932,794.91,793.57,0.5]
[1754834485038,1.1031932,794.91,793.9,0.2187723]
[1754834485338,1.1031932,794.92,793.9,0.2187723]
[1754834485538,1.1031932,794.94,793.9,0.2187723]
[1754834486035,1.1031932,794.91,793.9,0.2187723]
[1754834486240,1.1031932,794.8,793.9,0.2187723]
[1754834486741,1.1031932,794.95,793.9,0.2187723]
[1754834487336,1.1031932,794.98,793.9,0.2187723]
[1754834487738,1.1031932,794.9,793.9,0.2187723]
[1754834488842,1.1031932,794.88,793.9,0.2187723]
[1754834489143,1.1031932,794.86,793.9,0.2187723]
[1754834489545,1.1031932,794.85,793.9,0.2187723]
[1754834490144,1.1031932,794.84,793.9,0.2187723]
[1754834491046,1.1031932,794.85,793.9,0.2187723]
[1754834491247,1.1031932,794.84,793.9,0.2187723]
[1754834491543,1.1031932,794.83,793.9,0.2187723]
[1754834492249,1.1031932,794.79,793.9,0.2187723]
[1754834492443,1.1031932,794.78,793.9,0.2187723]
[1754834492643,1.1031932,794.76,793.9,0.2187723]
[1754834493148,1.1031932,794.75,793.9,0.2187723]
[1754834493650,1.1031932,794.86,793.9,0.2187723]
[1754834493848,1.1031932,794.8,793.9,0.2187723]
[1754834494348,1.1031932,795.12,793.9,0.2187723]
[1754834495451,1.1031932,795.09,793.9,0.2187723]
[1754834495649,1.1031932,795.18,793.9,0.2187723]
[1754834496153,1.1031932,795.16,793.9,0.2187723]
[1754834496353,1.1031932,795.09,793.9,0.2187723]
[1754834496551,1.1031932,795.03,793.9,0.2187723]
[1754834496949,1.1031932,795.01,793.9,0.2187723]
[1754834497148,1.1031932,794.79,793.9,0.2187723]
[1754834497354,1.1031932,794.74,793.9,0.2187723]
[1754834498554,1.1031932,794.75,793.9,0.2187723]
[1754834498754,1.1031932,794.71,793.9,0.2187723]
[1754834499457,1.1031932,794.79,793.9,0.2187723]
[1754834501152,1.1031932,795.29,793.9,0.2187723]
[1754834501354,1.1031932,795.35,793.9,0.2187723]
[1754834501551,1.1031932,795.36,793.9,0.2187723]
[1754834503657,1.1031932,795.35,793.9,0.2187723]
[1754834506352,1.1031932,795.37,793.9,0.2187723]
[1754834507054,1.1031932,795.26,793.9,0.2187723]
[1754834507758,1.1031932,795.23,793.9,0.2187723]
[1754834509160,1.1031932,795.18,793.9,0.2187723]
[1754834509360,1.1031932,795.17,793.9,0.2187723]
[1754834509959,1.1031932,795.1,793.9,0.2187723]
[1754834510162,1.1031932,794.95,793.9,0.2187723]
[1754834510461,1.1031932,795.0,793.9,0.2187723]
[1754834513162,1.1031932,794.99,793.9,0.2187723]
[1754834513457,1.6547898,795.16,793.9,0.2187723]
[1754834513458,1.1031932,794.98,793.9,0.2187723]
[1754834514563,1.1031932,794.97,793.9,0.2187723]
[1754834514761,1.1031932,794.9,793.9,0.2187723]
[1754834514962,1.1031932,794.92,793.9,0.2187723]
[1754834515360,1.1031932,794.89,793.9,0.2187723]
[1754834515563,1.6547898,795.04,793.9,0.2187723]
[1754834515564,1.1031932,794.93,793.9,0.2187723]
[1754834516159,1.1031932,795.23,793.9,0.2187723]
[1754834516365,1.1031932,795.03,793.9,0.2187723]
[1754834517465,1.1031932,795.02,793.9,0.2187723]
[1754834517766,1.1031932,794.99,793.9,0.2187723]
[1754834518161,1.1031932,794.97,793.9,0.2187723]
[1754834518368,1.1031932,794.89,793.9,0.2187723]
[1754834518564,1.1031932,794.65,793.9,0.2187723]
[1754834518766,1.1031932,794.64,793.9,0.2187723]
[1754834519269,1.1031932,794.62,793.9,0.2187723]
[1754834519467,1.1031932,794.6,793.9,0.2187723]
[1754834519665,1.1031932,794.62,793.9,0.2187723]
[1754834519866,1.1031932,794.61,793.9,0.2187723]
[1754834520572,1.1031932,794.63,793.9,0.2187723]
[1754834520772,1.1031932,794.62,793.9,0.2187723]
[1754834521472,1.1031932,794.63,793.9,0.2187723]
[1754834521972,1.1031932,794.68,793.9,0.2187723]
[1754834522169,1.1031932,794.71,793.9,0.2187723]
[1754834522572,1.1031932,794.74,793.9,0.2187723]
[1754834523671,1.1031932,794.73,793.9,0.2187723]
[1754834524075,1.1031932,794.71,793.9,0.2187723]
[1754834524274,1.1031932,794.61,793.9,0.2187723]
[1754834524471,1.1031932,794.57,793.9,0.2187723]
[1754834524869,1.1031932,794.56,793.9,0.2187723]
[1754834525075,1.1031932,794.57,793.9,0.2187723]
[1754834525376,1.1031932,794.58,793.9,0.2187723]
[1754834525576,1.1031932,794.53,793.9,0.2187723]
[1754834525976,1.1031932,794.47,793.9,0.2187723]
[1754834526376,1.1031932,794.48,793.9,0.2187723]
[1754834527176,1.1031932,794.46,793.9,0.2187723]
[1754834527475,1.1031932,794.45,793.9,0.2187723]
[1754834527672,1.1031932,794.39,793.9,0.2187723]
[1754834527871,1.1031932,794.37,793.9,0.2187723]
[1754834528271,1.1031932,794.38,793.9,0.2187723]
[1754834528477,1.1031932,794.36,793.9,0.2187723]
[1754834528673,1.1031932,794.33,793.9,0.2187723]
[1754834528871,1.1031932,794.37,793.9,0.2187723]
[1754834529075,1.1031932,794.35,793.9,0.2187723]
[1754834529376,1.1031932,794.36,793.9,0.2187723]
[1754834530977,1.1031932,794.48,793.9,0.2187723]
[1754834531781,1.1031932,794.5,793.9,0.2187723]
[1754834532178,1.1031932,794.54,793.9,0.2187723]
[1754834532482,1.1031932,794.52,793.9,0.2187723]
[1754834533378,1.1031932,794.53,793.9,0.2187723]
[1754834534683,1.1031932,794.51,793.9,0.2187723]
[1754834535385,1.1031932,794.52,793.9,0.2187723]
[1754834535580,1.1031932,794.47,793.9,0.2187723]
[1754834535883,1.1031932,794.56,793.9,0.2187723]
[1754834536380,1.1031932,794.63,793.9,0.2187723]
[1754834536784,1.1031932,794.64,793.9,0.2187723]
[1754834536985,1.1031932,794.66,793.9,0.2187723]
[1754834538085,1.1031932,794.75,793.9,0.2187723]
[1754834538385,1.1031932,794.73,793.9,0.2187723]
[1754834538579,1.1031932,794.69,793.9,0.2187723]
[1754834539388,1.1031932,794.79,793.9,0.2187723]
[1754834540181,1.1031932,794.76,793.9,0.2187723]
[1754834540386,1.1031932,794.79,793.9,0.2187723]
[1754834542386,1.1031932,794.78,793.9,0.2187723]
[1754834542686,1.1031932,794.76,793.9,0.2187723]
[1754834542887,1.1031932,794.78,793.9,0.2187723]
[1754834543383,0.82943732,794.57,793.9,0.2187723]
[1754834543983,0.82943732,794.41,793.9,0.2187723]
[1754834544283,0.82943732,794.36,793.9,0.2187723]
[1754834544687,0.82943732,794.34,793.9,0.2187723]
[1754834544889,0.62943732,794.27,793.9,0.2187723]
[1754834545186,1.1031932,794.33,793.9,0.2187723]
[1754834545385,1.1031932,794.32,793.9,0.2187723]
[1754834545590,1.1031932,794.31,793.9,0.2187723]
[1754834547391,1.1031932,794.5,793.9,0.2187723]
[1754834547889,1.1031932,794.54,793.9,0.2187723]
[1754834548089,1.1031932,794.55,793.9,0.2187723]
[1754834549192,1.1031932,794.68,793.9,0.2187723]
[1754834549492,1.1031932,794.65,793.9,0.2187723]
[1754834549692,1.1031932,794.54,793.9,0.2187723]
[1754834550089,1.1031932,794.44,793.9,0.2187723]
[1754834551491,1.1031932,794.42,793.9,0.2187723]
[1754834551692,1.1031932,794.52,793.9,0.2187723]
[1754834551891,1.1031932,794.49,793.9,0.2187723]
[1754834552193,1.1031932,794.46,793.9,0.2187723]
[1754834553506,1.1031932,794.53,793.9,0.2187723]
[1754834553753,1.1031932,794.61,793.9,0.2187723]
[1754834553896,1.1031932,794.48,793.9,0.2187723]
[1754834554097,1.1031932,794.54,793.9,0.2187723]
[1754834554396,1.1031932,794.85,793.9,0.2187723]
[1754834554593,1.1031932,794.86,793.9,0.2187723]
[1754834554794,1.1031932,794.88,793.9,0.2187723]
[1754834554990,1.1031932,794.9,793.9,0.2187723]
[1754834555195,1.1031932,794.9,793.95,0.359]
[1754834555393,1.1031932,794.95,793.9,0.2187723]
[1754834555591,1.1031932,794.99,793.9,0.2187723]
[1754834555795,1.1031932,795.03,793.9,0.2187723]
[1754834556698,1.1031932,795.07,793.9,0.2187723]
[1754834556995,1.1031932,795.09,794.08,0.297]
[1754834557192,1.1031932,795.09,794.0,0.5]
[1754834557394,1.1031932,795.07,794.0,0.5]
[1754834557898,1.1031932,795.07,793.96,0.5]
[1754834558297,1.1031932,795.08,793.96,0.5]
[1754834558693,1.1031932,795.07,793.96,0.5]
[1754834559396,1.1031932,795.07,793.97,0.5]
[1754834560196,1.1031932,795.06,793.97,0.5]
[1754834560401,1.1031932,795.07,793.97,0.5]
[1754834560696,1.1031932,795.06,793.97,0.5]
[1754834561396,1.1031932,795.07,793.97,0.5]
[1754834562396,1.1031932,795.05,793.97,0.5]
[1754834562601,1.1031932,795.03,793.97,0.5]
[1754834562802,1.1031932,795.0,793.9,0.2187723]
[1754834562999,1.1031932,794.98,793.9,0.2187723]
[1754834563298,1.1031932,794.88,793.9,0.2187723]
[1754834563503,1.1031932,794.97,793.9,0.2187723]
[1754834564302,1.1031932,794.95,793.9,0.2187723]
[1754834564602,1.1031932,794.89,793.9,0.2187723]
[1754834565001,1.1031932,794.86,793.9,0.2187723]
[1754834565400,1.1031932,794.84,793.9,0.2187723]
[1754834565599,1.1031932,794.7,793.9,0.2187723]
[1754834565997,1.1031932,794.69,793.9,0.2187723]
[1754834566299,1.1031932,794.65,793.9,0.2187723]
[1754834566501,1.1031932,794.63,793.9,0.2187723]
[1754834566698,1.1031932,794.62,793.9,0.2187723]
[1754834566901,1.1031932,794.61,793.9,0.2187723]
[1754834568105,1.1031932,794.66,793.9,0.2187723]
[1754834568902,1.1031932,794.86,793.9,0.2187723]
[1754834569307,1.1031932,794.85,793.9,0.2187723]
[1754834569507,1.1031932,794.84,793.9,0.2187723]
[1754834570103,1.1031932,794.85,793.9,0.2187723]
[1754834570307,1.1031932,794.84,793.9,0.2187723]
[1754834570509,1.1031932,794.97,793.9,0.2187723]
[1754834571208,1.1031932,794.88,793.9,0.2187723]
[1754834571504,1.1031932,794.91,793.9,0.2187723]
[1754834571908,1.1031932,794.94,793.9,0.2187723]
[1754834572305,1.1031932,794.92,793.9,0.2187723]
[1754834573003,1.1031932,794.95,793.9,0.2187723]
[1754834574310,1.1031932,794.94,793.9,0.2187723]
[1754834574806,1.1031932,794.95,793.9,0.2187723]
[1754834575609,1.1031932,794.96,793.9,0.2187723]
[1754834576304,1.1031932,794.97,793.9,0.2187723]
[1754834576506,1.1031932,794.98,793.9,0.2187723]
[1754834576709,1.1031932,794.92,793.9,0.2187723]
[1754834578911,1.1031932,794.91,793.9,0.2187723]
[1754834579111,1.1031932,794.88,793.9,0.2187723]
[1754834579308,1.1031932,794.86,793.9,0.2187723]
[1754834579615,2.7957214,795.58,793.9,0.2187723]
[1754834579616,1.1031932,794.85,793.9,0.2187723]
[1754834581008,3.91401,795.86,793.98,0.333]
[1754834581009,1.1031932,794.88,793.98,0.333]
[1754834581311,1.1031932,794.92,793.9,0.2187723]
[1754834581507,1.1031932,794.91,793.9,0.2187723]
[1754834581807,1.1031932,794.92,793.9,0.2187723]
[1754834582311,1.1031932,795.07,793.9,0.2187723]
[1754834582607,1.1031932,795.05,793.9,0.2187723]
[1754834583007,3.91401,795.91,793.9,0.2187723]
[1754834583008,1.1031932,795.08,793.9,0.2187723]
[1754834583412,1.1031932,795.13,793.9,0.7187723]
[1754834584313,1.1031932,795.14,793.9,0.7187723]
[1754834584915,1.1031932,795.15,793.9,0.7187723]
[1754834585611,1.1031932,795.14,793.9,0.7187723]
[1754834587217,1.1031932,795.15,793.95,0.5]
[1754834587413,1.1031932,795.19,794.08,0.317]
[1754834587615,1.1031932,795.18,794.13,0.318]
[1754834587814,1.1031932,795.18,794.0,0.5]
[1754834588218,1.1031932,795.17,794.0,0.5]
[1754834588519,1.1031932,795.18,794.0,0.5]
[1754834588718,1.1031932,795.15,794.0,0.5]
[1754834588920,1.1031932,795.04,793.99,0.318]
[1754834589115,1.1031932,794.96,793.98,0.5]
[1754834589916,1.1031932,794.94,793.98,0.5]
[1754834590219,1.6547898,795.07,793.98,0.5]
[1754834590220,1.1031932,794.93,793.98,0.5]
[1754834590617,1.1031932,794.94,793.98,0.5]
[1754834592221,1.1031932,794.93,793.9,0.2187723]
[1754834592920,1.1031932,794.98,793.9,0.2187723]
[1754834593124,0.9031932,794.98,793.9,0.2187723]
[1754834594126,1.6547898,795.14,793.95,0.5]
[1754834594425,1.6547898,795.13,793.95,0.5]
[1754834594624,2.7957214,795.74,793.95,0.5]
[1754834594625,1.6547898,795.12,793.95,0.5]
[1754834594826,1.6547898,795.15,793.95,0.5]
[1754834595226,1.6547898,795.14,793.95,0.5]
[1754834595526,1.6547898,795.15,793.95,0.5]
[1754834597425,1.6547898,795.38,793.9,0.7187723]
[1754834597826,1.6547898,795.37,793.9,0.7187723]
[1754834598323,1.6547898,795.38,794.0,0.324]
[1754834598523,1.6547898,795.7,794.1,0.343]
[1754834598723,1.6547898,795.72,794.1,0.343]
[1754834599027,1.6547898,795.72,794.28,0.357]
[1754834599331,1.6547898,795.72,794.29,0.39]
[1754834599625,1.6547898,795.74,794.15,0.5]
[1754834599828,1.6547898,795.72,794.15,0.5]
[1754834600125,1.6547898,795.71,794.15,0.5]
[1754834600330,1.6547898,795.67,794.15,0.5]
[1754834600529,1.6547898,795.66,794.15,0.5]
[1754834601328,1.6547898,795.66,794.05,0.5]
[1754834601628,1.6547898,795.66,794.03,0.5]
[1754834602328,1.6547898,795.68,794.03,0.5]
[1754834602829,1.6547898,795.7,794.03,0.5]
[1754834603125,1.6547898,795.71,794.03,0.5]
[1754834603625,1.6547898,795.7,794.03,0.5]
[1754834604027,1.6547898,795.69,794.28,0.31]
[1754834604230,1.6547898,795.69,794.2,0.5]
[1754834604430,1.6547898,795.68,794.2,0.5]
[1754834604829,1.6547898,795.63,794.2,0.5]
[1754834605027,0.82823775,795.2,794.2,0.5]
[1754834605227,0.82823775,795.19,794.2,0.5]
[1754834605634,0.82823775,795.24,794.2,0.5]
[1754834606129,0.82823775,795.25,794.2,0.5]
[1754834606934,0.82823775,795.23,794.29,0.324]
[1754834607230,0.82823775,795.29,794.24,0.5]
[1754834607435,0.82823775,795.31,794.24,0.5]
[1754834607634,0.82823775,795.32,794.24,0.5]
[1754834608236,0.82823775,795.29,794.24,0.5]
[1754834608438,0.82823775,795.3,794.24,0.5]
[1754834608738,0.82823775,795.29,794.24,0.5]
[1754834610833,0.82823775,795.3,794.24,0.5]
[1754834611037,0.82823775,795.29,794.24,0.5]
[1754834611439,0.82823775,795.35,794.24,0.5]
[1754834611836,0.82823775,795.47,794.31,0.5]
[1754834612039,0.82823775,795.46,794.31,0.5]
[1754834612336,0.82823775,795.43,794.31,0.5]
[1754834612539,0.82823775,795.43,794.35,0.314]
[1754834612741,0.82823775,795.42,794.31,0.5]
[1754834612937,0.82823775,795.41,794.31,0.5]
[1754834613541,0.82823775,795.44,794.31,0.5]
[1754834614341,0.82823775,795.45,794.5,0.251]
[1754834614542,0.82823775,795.46,794.5,0.251]
[1754834614836,0.82823775,795.53,794.5,0.345]
[1754834615137,0.82823775,795.53,794.42,0.5]
[1754834615536,0.82823775,795.5,794.42,0.5]
[1754834617140,0.82823775,795.48,794.42,0.5]
[1754834617540,0.82823775,795.38,794.42,0.5]
[1754834617844,0.82823775,795.39,794.56,0.402]
[1754834618044,0.82823775,795.43,794.59,0.308]
[1754834618244,2.7957214,796.31,794.64,0.5]
[1754834618245,0.82823775,795.46,794.64,0.5]
[1754834618544,0.82823775,795.47,794.64,0.5]
[1754834618945,0.82823775,795.46,794.64,0.5]
[1754834619542,0.82823775,795.6,794.64,0.5]
[1754834620446,0.82823775,795.61,794.64,0.5]
[1754834621047,0.82823775,795.61,794.54,0.308]
[1754834621346,0.82823775,795.6,794.51,0.5]
[1754834621542,0.82823775,795.6,794.49,0.5]
[1754834621746,0.82823775,795.59,794.49,0.5]
[1754834622047,0.82823775,795.52,794.49,0.5]
[1754834622244,0.82823775,795.36,794.49,0.5]
[1754834622444,0.82823775,795.3,794.49,0.5]
[1754834623147,0.82823775,795.3,794.38,0.5]
[1754834624645,0.82823775,795.31,794.38,0.5]
[1754834625042,0.82823775,795.31,794.45,0.295]
[1754834625345,0.82823775,795.31,794.38,0.5]
[1754834625745,1.1034489,795.51,794.38,0.5]
[1754834625946,1.1034489,795.55,794.45,0.5]
[1754834626150,1.1034489,795.58,794.45,0.5]
[1754834626647,1.1034489,795.6,794.45,0.5]
[1754834627151,1.1034489,795.63,794.45,0.5]
[1754834627952,1.1034489,795.67,794.62,0.316]
[1754834628151,3.91401,796.7,793.9,0.2187723]
[1754834628152,1.1034489,795.7,794.52,0.5]
[1754834628451,1.1034489,795.7,794.65,0.5]
[1754834628951,1.1034489,795.7,794.52,0.5]
[1754834629157,1.1034489,795.7,794.67,0.316]
[1754834629457,1.1034489,795.71,794.55,0.5]
[1754834629657,1.1034489,795.71,794.66,0.333]
[1754834629854,1.1034489,795.71,794.52,0.5]
[1754834630053,1.1034489,795.78,794.69,0.5]
[1754834630557,1.1034489,795.79,794.69,0.5]
[1754834631154,1.1034489,795.76,794.69,0.5]
[1754834635065,1.1034489,795.7,794.67,0.461]
[1754834635258,1.1034489,795.7,794.56,0.5]
[1754834635563,1.1034489,795.68,794.56,0.5]
[1754834636058,1.1034489,795.68,794.58,0.461]
[1754834636263,1.1034489,795.68,794.56,0.5]
[1754834638263,1.1034489,795.69,794.68,0.31]
[1754834638461,1.1034489,795.67,794.7,0.5]
[1754834638661,1.1034489,795.67,794.58,0.333]
[1754834638862,1.1034489,795.66,794.57,0.5]
[1754834639262,1.1034489,795.65,794.57,0.5]
[1754834639463,1.1034489,795.66,794.57,0.5]
[1754834639662,1.1034489,795.65,794.57,0.5]
[1754834640965,1.1034489,795.65,794.68,0.296]
[1754834641162,1.1034489,795.65,794.59,0.5]
[1754834641668,1.1034489,795.69,794.69,0.296]
[1754834642167,1.1034489,795.69,794.63,0.5]
[1754834642367,1.1034489,795.7,794.63,0.5]
[1754834642663,1.1034489,795.69,794.64,0.31]
[1754834642864,1.1034489,795.78,794.63,0.5]
[1754834643062,1.1034489,795.78,794.76,0.31]
[1754834643268,1.1034489,795.79,794.71,0.5]
[1754834643462,1.1034489,795.9,794.71,0.5]
[1754834643968,1.1034489,796.04,794.71,0.5]
[1754834644867,1.1034489,796.03,794.59,0.5]
[1754834645067,1.1034489,795.97,794.59,0.5]
[1754834645366,1.1034489,795.77,794.53,0.5]
[1754834645568,1.1034489,795.81,794.53,0.5]
[1754834645767,1.1034489,795.85,794.53,0.5]
[1754834646073,1.1034489,795.75,794.48,0.324]
[1754834646265,1.1034489,795.75,794.63,0.324]
[1754834646465,1.1034489,795.75,794.51,0.5]
[1754834648268,1.1034489,795.76,794.51,0.5]
[1754834648472,1.1034489,795.65,794.51,0.5]
[1754834648968,1.1034489,795.64,794.51,0.5]
[1754834649272,1.1034489,795.61,794.51,0.5]
[1754834649871,1.1034489,795.56,794.51,0.5]
[1754834650070,1.1034489,795.55,794.39,0.331]
[1754834650467,1.1034489,795.53,794.39,0.331]
[1754834650771,1.1034489,795.55,794.38,0.5]
[1754834650968,1.1034489,795.51,794.38,0.5]
[1754834652371,1.1034489,795.5,794.38,0.5]
[1754834653168,1.1034489,795.49,794.38,0.5]
[1754834653373,1.1034489,795.48,794.38,0.5]
[1754834654072,1.1034489,795.48,794.4,0.312]
[1754834654273,1.1034489,795.48,794.38,0.5]
[1754834654471,1.1034489,795.47,794.38,0.5]
[1754834654872,1.1034489,795.46,794.38,0.5]
[1754834655173,1.1034489,795.45,794.38,0.5]
[1754834655371,1.1034489,795.43,794.38,0.5]
[1754834655574,1.1034489,795.38,794.38,0.5]
[1754834656171,1.1034489,795.37,794.38,0.5]
[1754834656371,1.1034489,795.37,794.29,0.5]
[1754834656570,1.1034489,795.36,794.29,0.5]